Cogmind - Beta 9.6 @@@ ROGUE MODE // 2020.08.24 @ 08:55:43 Player: BoilerRoom Result: Self-destructed Performance ------------- Evolutions (1) 500 Regions Visited (3) 600 Robots Destroyed (20) 100 Value Destroyed (301) 301 Prototype IDs (0) 0 Alien Tech Used (0) 0 Bonus (0) 0 TOTAL SCORE: 1501 Bonus ------- None Cogmind --------- Core Integrity 342/400 Matter 295/300 Energy 96/100 System Corruption 0% Temperature Cool (0) Movement Core (50) Location -9/Materials Parts ------- > --- POWER (2) -------- (None) > --- PROPULSION (2) --- (None) > --- UTILITY (3) ------ Hacking Suite > --- WEAPON (2) ------- (None) > --- INVENTORY (4) ---- Improved Heat Sink Small Storage Unit Peak State ------------ > --- POWER ------------ Ion Engine > --- PROPULSION ------- Light Treads Light Treads > --- UTILITY ---------- Improved Terrain Scanner Hacking Suite > --- WEAPON ----------- Assault Rifle Light Assault Rifle > --- INVENTORY -------- Small Storage Unit Medium Laser Mining Laser [Rating: 10] Favorites ----------- Power Ion Engine Engine Ion Engine Propulsion Light Treads Treads Light Treads Wheel Wheel Flight Unit Flight Unit Utility Hacking Suite Device Improved Terrain Scanner Storage Small Storage Unit Processor Seismic Analyzer Hackware Hacking Suite Weapon Assault Rifle Energy Gun Medium Laser Energy Cannon Beam Cannon Ballistic Gun Assault Rifle Special Weapon Mining Laser Build | -11 -10 -10 -9 ------- Run | Scr Mat Min Mat Slots Evolved 2 | . . . 2 Power 1 | . . . 1 Propulsion . | . . . . Utility 1 | . . . 1 Weapon . | . . . . Parts Attached 20 | 11 1 7 1 Power 1 | 1 . . . Engine 1 | 1 . . . Core . | . . . . Reactor . | . . . . Propulsion 6 | 2 . 4 . Treads 3 | 2 . 1 . Leg . | . . . . Wheel 2 | . . 2 . Hover . | . . . . Flight 1 | . . 1 . Utility 5 | 3 1 1 . Device 2 | 1 . 1 . Storage 1 | 1 . . . Processor 1 | 1 . . . Hackware 1 | . 1 . . Protection . | . . . . Artifact . | . . . . Weapon 8 | 5 . 2 1 Energy Gun 1 | . . 1 . Energy Cannon 1 | . . 1 . Ballistic Gun 3 | 3 . . . Ballistic Cannon . | . . . . Launcher . | . . . . Special Weapon 3 | 2 . . 1 Impact Weapon . | . . . . Slashing Weapon . | . . . . Piercing Weapon . | . . . . Special Melee Weapon . | . . . . Unidentified Prototypes . | . . . . Parts Lost 11 | . 2 2 7 Power 1 | . . . 1 Propulsion 3 | . 1 . 2 Utility 2 | . . 1 1 Weapon 5 | . 1 1 3 Highest Loss Streak 7 | . 2 2 7 Average Slot Usage (%) 85 | . 93 82 59 Engine 13 | . 14 14 6 Treads 17 | . 24 13 8 Wheel 7 | . . 13 6 Device 8 | . 14 4 11 Hackware 13 | . 12 14 11 Energy Gun 7 | . . 13 8 Energy Cannon 3 | . . 5 6 Ballistic Gun 11 | . 24 3 . Naked Turns . | . . . . Heaviest Build 12 | 12 9 11 11 Greatest Support 40 | 40 40 20 20 Greatest Overweight (x) 2 | 2 . 1 . Average Overweight (x) . | . . . . Largest Inventory Capacity 6 | 6 4 4 4 Average Capacity 4 | 5 4 4 4 Most Carried 4 | 4 4 4 3 Average Carried 2 | 1 3 2 2 Final Capacity 4 | 4 4 4 4 Final Carried 3 | 3 3 3 2 Class Distribution -------------------- 100% | Mutant Dominant Class ---------------- Mutant | -10/Materials Mutant | -10/Mines Mutant | -9/Materials Resources | -11 -10 -10 -9 ----------- Run | Scr Mat Min Mat Matter Collected 655 | 331 198 126 . Remotely . | . . . . Salvage Created 477 | 114 316 47 . Parts 39 | 9 23 7 . Haulers Intercepted . | . . . . Recyclers Shooed 2 | . 2 . . Parts Field Recycled . | . . . . Retrieved Matter . | . . . . Parts Self-Destructed . | . . . . Prevented . | . . . . Kills | -11 -10 -10 -9 ------- Run | Scr Mat Min Mat Combat Hostiles Destroyed 13 | . 10 3 . Guns 13 | . 10 3 . Classes Destroyed 6 | 2 4 . . Tunneler 3 | 3 . . . Recycler 1 | 1 . . . Operator 2 | . 2 . . Watcher 1 | . 1 . . Swarmer 9 | . 6 3 . Grunt 4 | . 4 . . Best Kill Streak 8 | 2 8 3 . Combat Bots Only 3 | . 3 3 . Max Kills in Single Turn 1 | 1 1 1 . Gunslinging . | . . . . Exploded . | . . . . Melee . | . . . . Uniques/NPCs Destroyed . | . . . . Combat | -11 -10 -10 -9 -------- Run | Scr Mat Min Mat Damage Taken 948 | . 582 92 274 Core 229 | . 124 47 58 Absorbed by Shields . | . . . . Core Remaining (%) 65 | 100 . 31 . Volleys Fired 94 | 19 59 9 7 Largest 2 | 2 2 2 1 Hottest 100 | 100 40 70 50 Shots Fired 152 | 29 104 12 7 Gun 151 | 28 104 12 7 Cannon . | . . . . Launcher . | . . . . Special 1 | 1 . . . Kinetic 135 | 28 104 3 . Thermal 17 | 1 . 9 7 Explosive . | . . . . Electromagnetic . | . . . . Robot Hit Streak 6 | 5 6 1 3 Robot Miss Streak 4 | 3 4 3 2 Penetration Max . | . . . . Secondary Targets 1 | . 1 . . Max Gunslinging Chain 1 | . 1 . . Shots Hit Robots 88 | 17 63 4 4 Core Hits 32 | 6 21 3 2 Critical Hits 1 | . 1 . . Critical Kills . | . . . . Critical Parts Destroyed 1 | . 1 . . Melee Attacks . | . . . . Impact . | . . . . Slashing . | . . . . Piercing . | . . . . Sneak Attacks . | . . . . Combat Hostiles . | . . . . Follow-up Attacks . | . . . . Damage Inflicted 946 | 163 672 37 74 Guns 946 | 163 672 37 74 Cannons . | . . . . Explosions . | . . . . Melee . | . . . . Ramming . | . . . . Kinetic 847 | 163 672 12 . Thermal 99 | . . 25 74 Explosive . | . . . . Electromagnetic . | . . . . Impact . | . . . . Slashing . | . . . . Piercing . | . . . . Highest Corruption . | . . . . Average Corruption . | . . . . Corruption Purged . | . . . . Overload Shots . | . . . . Overflow Damage . | . . . . Projectiles . | . . . . Explosions . | . . . . Melee . | . . . . Knockbacks . | . . . . Impact . | . . . . Kinetic . | . . . . Secondary . | . . . . Self-Inflicted Damage . | . . . . Shots . | . . . . Rammed . | . . . . Targets Rammed . | . . . . Kicked . | . . . . Crushed . | . . . . Highest Temperature 87 | 22 18 87 1 Average Temperature 22 | 10 7 39 1 Received Heat Transfer 198 | . 126 . 72 Siege Activations . | . . . . Robots Corrupted . | . . . . Combat Hostiles . | . . . . Parts Fried . | . . . . Impact Corruptions . | . . . . Robots Melted . | . . . . Combat Hostiles . | . . . . Parts Melted 1 | . . 1 . Heat Transferred 296 | . . 74 222 Parts Sabotaged . | . . . . Parts Stolen . | . . . . Parts Stripped . | . . . . Power Chain Reactions . | . . . . Missiles Intercepted . | . . . . Alert | -11 -10 -10 -9 ------- Run | Scr Mat Min Mat Peak Influence 265 | 20 265 153 74 Average Influence 90 | 9 117 140 48 Maximum Alert Level 1 | . 1 . . Low Security (%) 92 | 100 74 100 100 Level 1 7 | . 25 . . Level 2 . | . . . . Level 3 . | . . . . Level 4 . | . . . . Level 5 . | . . . . High Security . | . . . . Max Security . | . . . . Squads Dispatched 2 | . 2 . . Investigation . | . . . . Extermination . | . . . . Reinforcement 2 | . 2 . . Assault . | . . . . Garrison . | . . . . Intercept . | . . . . Construction Impeded . | . . . . Haulers Reinforced . | . . . . Stealth | -11 -10 -10 -9 --------- Run | Scr Mat Min Mat Distress Signals 2 | . 2 . . Communications Jammed . | . . . . Distress Signals . | . . . . Times Spotted 22 | . 17 3 2 Peak Tracking Total 4 | . 4 3 2 Tactical Retreats . | . . . . Traps | -11 -10 -10 -9 ------- Run | Scr Mat Min Mat Traps Triggered . | . . . . Indirectly . | . . . . Trap Hack Attempts . | . . . . Triggered . | . . . . Disarmed . | . . . . Reprogrammed . | . . . . Reused . | . . . . Traps Extracted . | . . . . Installed . | . . . . Triggered . | . . . . Machines | -11 -10 -10 -9 ---------- Run | Scr Mat Min Mat Machines Disabled . | . . . . Max in Single Turn . | . . . . Machines Sabotaged . | . . . . Garrisons Compromised . | . . . . Overloaded Fab Kills . | . . . . Fab Network Shutdowns . | . . . . Hacking | -11 -10 -10 -9 --------- Run | Scr Mat Min Mat Machines Accessed . | . . . . Terminals . | . . . . Fabricators . | . . . . Repair Stations . | . . . . Recycling Units . | . . . . Scanalyzers . | . . . . Garrison Access . | . . . . Total Hacks . | . . . . Successful . | . . . . Failed . | . . . . Catastrophic . | . . . . Database Lockouts . | . . . . Manual . | . . . . Terminals . | . . . . Fabricators . | . . . . Repair Stations . | . . . . Recycling Units . | . . . . Scanalyzers . | . . . . Garrison Access . | . . . . Terminal Hacks . | . . . . Fabricator Hacks . | . . . . Repair Station Hacks . | . . . . Recycling Unit Hacks . | . . . . Scanalyzer . | . . . . Garrison Access Hacks . | . . . . Unauthorized Hacks . | . . . . Terminals . | . . . . Fabricators . | . . . . Repair Stations . | . . . . Recycling Units . | . . . . Scanalyzers . | . . . . Garrison Access . | . . . . Data Cores Recovered . | . . . . Used . | . . . . Hacking Detections . | . . . . Full Trace Events . | . . . . Feedback Events . | . . . . Feedback Blocked . | . . . . Robot Schematics Acquired . | . . . . Robots Built . | . . . . Matter . | . . . . Time . | . . . . Total Robot Build Rating . | . . . . Part Schematics Acquired . | . . . . Parts Built . | . . . . Matter . | . . . . Time . | . . . . Total Part Build Rating . | . . . . Parts Repaired . | . . . . Time . | . . . . Parts Recycled . | . . . . Recycled Matter . | . . . . Retrieved Matter . | . . . . Retrieved Components . | . . . . Parts Scanalyzed . | . . . . Part Schematics Acquired . | . . . . Parts Damaged . | . . . . Bothacking | -11 -10 -10 -9 ------------ Run | Scr Mat Min Mat Used RIF Installer . | . . . . Robots Hacked . | . . . . Non-combat . | . . . . Combat . | . . . . Robot Hacks Applied . | . . . . Relay Couplers Released . | . . . . Robots Rewired . | . . . . Allies Hacked . | . . . . Hacks Repelled . | . . . . Allies | -11 -10 -10 -9 -------- Run | Scr Mat Min Mat Total Allies . | . . . . Largest Group . | . . . . Highest-Rated Group . | . . . . Highest-Rated Ally . | . . . . Total Orders . | . . . . Ally Attacks . | . . . . Total Damage . | . . . . Kills . | . . . . Allies Corrupted . | . . . . Allies Melted . | . . . . Intel | -11 -10 -10 -9 ------- Run | Scr Mat Min Mat Robot Analysis Total . | . . . . Derelict Logs Recovered 1 | . . 1 . Drone Launches . | . . . . Drone Recoveries . | . . . . Exploration | -11 -10 -10 -9 ------------- Run | Scr Mat Min Mat Turns Passed 937 | 276 266 342 53 Spaces Moved 526 | 132 69 287 38 Core 31 | 10 . . 21 Treads 300 | 122 69 92 17 Legs . | . . . . Wheels 188 | . . 188 . Hover . | . . . . Flight 7 | . . 7 . Fastest Speed 50 | 50 160 80 50 Average Speed 124 | 153 160 106 99 Slowest Speed 160 | 160 160 160 160 Overloaded Moves . | . . . . Propulsion Burnouts . | . . . . Robots Hopped . | . . . . Cave-ins Triggered . | . . . . Exploration Rate (%) 24 | 6 23 62 5 Regions Visited 3 Branch Regions 1 Pre-discovered Areas 1 | . . 1 . Known Exits Taken . | . . . . Unknown Exits Taken 3 | 1 1 1 . Scrap Searched . | . . . . Spaces Dug . | . . . . Terrain Destroyed . | . . . . Melee . | . . . . Projectile . | . . . . AOE . | . . . . Actions | -11 -10 -10 -9 --------- Run | Scr Mat Min Mat Total 663 | 175 130 312 46 Wait . | . . . . Move 523 | 131 68 286 38 Hop . | . . . . Pick Up 20 | 12 1 7 . Fast Attach . | . . . . Attach 15 | 7 1 6 1 Detach 1 | . 1 . . Swap 5 | 4 . 1 . Drop 5 | 2 . 3 . Fire 94 | 19 59 9 7 Melee . | . . . . Ram . | . . . . Kick . | . . . . Crush . | . . . . Escape Stasis . | . . . . Rewire . | . . . . Trap . | . . . . Miscellaneous . | . . . . Route ------- -11/Scrapyard -10/Materials (discovered 3 exits: [*Mat] / [*Min x2]) -10/Mines (discovered 2 exits: [*Mat x2]) -9/Materials History --------- Turn | Location | Event 25 | -11/Scrapyard | Discovered new exit (range 16) 277 | -11/Scrapyard | Entered Materials 327 | -10/Materials | Build established: Mutant 404 | -10/Materials | Discovered new exit (range 16) 476 | -10/Materials | Discovered new exit (range 13) 528 | -10/Materials | Discovered new exit (range 9) 543 | -10/Materials | Entered Mines 579 | -10/Mines | Met a Derelict bent on vengeance 590 | -10/Mines | Discovered new exit (range 5) 620 | -10/Mines | Core integrity fell below 50% 810 | -10/Mines | Discovered new exit (range 14) 856 | -10/Mines | Learned location of Zion (-7) 885 | -10/Mines | Entered Materials 885 | -9/Materials | Evolved 2 slots: Power x1, Utility x1 938 | -9/Materials | Self-destructed Last Messages --------------- GF-CKW(g): "VENGEANCE!" GF-CKW(g): "TASTE MY VENGEANCE!" EXIT=FOUND Acquired 40 matter. Acquired Heat Sink. Acquired derelict log, extracted data. World map updated: -7/Zion. Acquired Imp. Heat Sink. PARAMETERS=POWER_1,UTILITY_1 LOCATION=UNKNOWN GOAL=ESCAPE T-07 Excavator is excavating. Beam Cannon destroyed. Wheel destroyed. Ion Engine destroyed. Med. Laser destroyed. Lgt. Treads destroyed. Heat Sink destroyed. Mining Laser destroyed. T-07 Excavator is excavating. Map ----- +----------------------------------------------------+ | | | | | | | | | | | | | | | | | | | | | | | | | ??????????????????????????????????????????????? | | ??????????????????????????????????????????????? | | ??????????????????????????????????????????????? | | ??????????????????????????????????????????????? | | ??????????????????????????????????????????????? | | ??????????????????????????????????????????????? | | ??????????????????#########???????????????????? | | ??????????????????# #???????????????????? | | ??????????????????# #???????????????????? | | ??????????????????# #??????#????????????? | | ??????????????????##### #???? #????????????? | | ????????????????####### #??!!! #????????????? | | ????????????????# # # !! #????????????? | | ?????????????????#t @ + !! #????????????? | | ?????????????????# # # #????????????? | | ?????????????????###### #??[ #????????????? | | ??????????????????????# #????###????????????? | | ???????????????######## #???????????????????? | | ???????????????# # #???????????????????? | | ???????????????# """ # #???????????????????? | | ???????????????# """ " ##########??????????? | | ???????????????# """ # ??????? | | ???????????????# # ??????? | | ???????????????# # ??????? | | ???????????????######## #####+#######???????? | | ??????????????????????# #???????????????????? | | ??????????????????????# #???????????????????? | | ??????????????????????+ +???????????????????? | | ??????????????????????# #???????????????????? | | ??????????????????????# #???????????????????? | | ??????????????????????# #???????????????????? | | ?????????????????????? ???????????????????? | | ?????????????????????? ???????????????????? | | ?????????????????????? ???????????????????? | | ?????????????????????? #??????????????????? | | ?????????????????????? #??????????????????? | | ??????????????????????######??????????????????? | | ??????????????????????????????????????????????? | +----------------------------------------------------+ Best States ------------- Heat Dissipation 38 Energy Generation 10 Energy Capacity 250 Matter Stores 300 Matter Capacity 300 Sight Range 16 Terrain Scan Range 16 Terrain Scan Density 60 Evasion (%) 50 Recoil Reduction 2 Offensive Hacking 10 Item Schematics ----------------- None Robot Schematics ------------------ None Fabricated ------------ Nothing Alien Tech Used ----------------- None Achievements -------------- None Challenges ------------ None Game ------ Seed AntimissilePortableRail Manual? 0 Play Time 00:14:40 Cumulative 2.1 hours Start 2020.05.29 @ 21:30:16 End 2020.08.24 @ 08:55:43 Sessions 3 Manual Loads 0 Difficulty Rogue Special Mode None Game No. 6 Rogue 6 Adventurer 0 Explorer 0 Win Type - Total 0 Types 0/0/0/0/0/0/0 Lore% 1 Gallery% 4 Achievement% 4 Wizard Run 0 Options --------- ASCII 0 Keyboard 0 Movement Mouse Keybinds 0 Fullscreen 1 Font 18/SmallcapsGlow Map View 76x50 Tactical HUD 0 Map Filters NONE Filters NONE Steam 1 RUN: d6696453-d232-47f3-98b5-165b62d07142